[Event "Titled Tuesday Blitz November 22 Late 2022"]
[White "Rangel, Daniel"]
[Black "Kaganskiy, Gleb"]
[WhiteFideId "2124475"]
[BlackFideId "4132025"]
[WhiteElo "2225"]
[BlackElo "2165"]
[Result "1/2-1/2"]
[Round "05"]
[TimeControl "180+1"]
[Date "2022.11.23"]
[WhiteClock "0:00:04"]
[BlackClock "0:00:10"]

1. d4 {[%clk 0:03:00]}  Nf6 {[%clk 0:02:57]} 2. c4 {[%clk 0:03:00]}  g6 {[%clk 0:02:56]} 3. Nc3 {[%clk 0:03:00]}  Bg7 {[%clk 0:02:55]} 4. e4 {[%clk 0:03:00]}  d6 {[%clk 0:02:55]} 5. Nf3 {[%clk 0:03:00]}  O-O {[%clk 0:02:53]} 6. Be2 {[%clk 0:03:01]}  Nbd7 {[%clk 0:02:53]} 7. O-O {[%clk 0:03:00]}  e5 {[%clk 0:02:52]} 8. d5 {[%clk 0:02:57]}  Nc5 {[%clk 0:02:51]} 9. Qc2 {[%clk 0:02:58]}  a5 {[%clk 0:02:50]} 10. b3 {[%clk 0:02:57]}  b6 {[%clk 0:02:44]} 11. Bg5 {[%clk 0:02:33]}  h6 {[%clk 0:02:43]} 12. Bh4 {[%clk 0:02:30]}  g5 {[%clk 0:02:42]} 13. Bg3 {[%clk 0:02:29]}  Ncxe4 {[%clk 0:02:38]} 14. Nxe4 {[%clk 0:02:26]}  Nxe4 {[%clk 0:02:39]} 15. Qxe4 {[%clk 0:02:25]}  f5 {[%clk 0:02:38]} 16. Qc2 {[%clk 0:02:18]}  e4 {[%clk 0:02:33]} 17. Nd2 {[%clk 0:02:02]}  Bxa1 {[%clk 0:02:25]} 18. Rxa1 {[%clk 0:02:02]}  f4 {[%clk 0:02:24]} 19. Nxe4 {[%clk 0:01:48]}  Bf5 {[%clk 0:02:16]} 20. Bd3 {[%clk 0:01:47]}  fxg3 {[%clk 0:02:14]} 21. Nxg3 {[%clk 0:01:46]}  Bxd3 {[%clk 0:02:11]} 22. Qxd3 {[%clk 0:01:47]}  Qf6 {[%clk 0:02:11]} 23. Rf1 {[%clk 0:01:46]}  Rae8 {[%clk 0:02:07]} 24. f3 {[%clk 0:01:35]}  Re5 {[%clk 0:01:53]} 25. h3 {[%clk 0:01:13]}  Rfe8 {[%clk 0:01:50]} 26. Rf2 {[%clk 0:01:03]}  Re1+ {[%clk 0:01:44]} 27. Kh2 {[%clk 0:01:03]}  R1e3 {[%clk 0:01:40]} 28. Qc2 {[%clk 0:01:01]}  R3e5 {[%clk 0:01:36]} 29. Qd2 {[%clk 0:00:46]}  Qf4 {[%clk 0:01:31]} 30. Qd3 {[%clk 0:00:42]}  Qf6 {[%clk 0:01:29]} 31. Qc2 {[%clk 0:00:39]}  Kh8 {[%clk 0:01:23]} 32. Qd2 {[%clk 0:00:26]}  Qg6 {[%clk 0:01:17]} 33. Ne4 {[%clk 0:00:24]}  Kg7 {[%clk 0:01:10]} 34. a3 {[%clk 0:00:24]}  Rxe4 {[%clk 0:01:09]} 35. fxe4 {[%clk 0:00:24]}  Qxe4 {[%clk 0:01:09]} 36. Qc3+ {[%clk 0:00:23]}  Qe5+ {[%clk 0:01:08]} 37. Qxe5+ {[%clk 0:00:23]}  Rxe5 {[%clk 0:01:09]} 38. Rf3 {[%clk 0:00:23]}  Re4 {[%clk 0:01:02]} 39. a4 {[%clk 0:00:23]}  h5 {[%clk 0:00:58]} 40. Kg1 {[%clk 0:00:22]}  Kg6 {[%clk 0:00:57]} 41. Kf2 {[%clk 0:00:20]}  Rd4 {[%clk 0:00:56]} 42. Ke2 {[%clk 0:00:19]}  g4 {[%clk 0:00:54]} 43. hxg4 {[%clk 0:00:19]}  hxg4 {[%clk 0:00:55]} 44. Rf8 {[%clk 0:00:19]}  Re4+ {[%clk 0:00:54]} 45. Kd2 {[%clk 0:00:19]}  Re7 {[%clk 0:00:45]} 46. Rg8+ {[%clk 0:00:19]}  Kf5 {[%clk 0:00:44]} 47. g3 {[%clk 0:00:18]}  Rh7 {[%clk 0:00:42]} 48. Ke3 {[%clk 0:00:17]}  Re7+ {[%clk 0:00:41]} 49. Kd3 {[%clk 0:00:17]}  Rh7 {[%clk 0:00:40]} 50. Rf8+ {[%clk 0:00:17]}  Ke5 {[%clk 0:00:39]} 51. Re8+ {[%clk 0:00:14]}  Kf5 {[%clk 0:00:39]} 52. Rf8+ {[%clk 0:00:15]}  Ke5 {[%clk 0:00:37]} 53. Rf4 {[%clk 0:00:15]}  Rg7 {[%clk 0:00:35]} 54. Ke3 {[%clk 0:00:15]}  Rg5 {[%clk 0:00:33]} 55. Rf7 {[%clk 0:00:14]}  Rh5 {[%clk 0:00:30]} 56. Rxc7 {[%clk 0:00:12]}  Rh3 {[%clk 0:00:29]} 57. Re7+ {[%clk 0:00:12]}  Kf5 {[%clk 0:00:28]} 58. Rf7+ {[%clk 0:00:09]}  Kg5 {[%clk 0:00:26]} 59. Rg7+ {[%clk 0:00:07]}  Kf5 {[%clk 0:00:26]} 60. Kf2 {[%clk 0:00:05]}  Rh2+ {[%clk 0:00:25]} 61. Ke3 {[%clk 0:00:06]}  Rg2 {[%clk 0:00:22]} 62. Rd7 {[%clk 0:00:03]}  Rxg3+ {[%clk 0:00:21]} 63. Kd2 {[%clk 0:00:04]}  Ke5 {[%clk 0:00:20]} 64. Re7+ {[%clk 0:00:03]}  Kd4 {[%clk 0:00:20]} 65. Rg7 {[%clk 0:00:02]}  Rg2+ {[%clk 0:00:19]} 66. Kc1 {[%clk 0:00:02]}  Kc3 {[%clk 0:00:18]} 67. Kd1 {[%clk 0:00:02]}  Kxb3 {[%clk 0:00:18]} 68. Rg6 {[%clk 0:00:03]}  Kxc4 {[%clk 0:00:15]} 69. Rxd6 {[%clk 0:00:03]}  Kc5 {[%clk 0:00:15]} 70. Rd8 {[%clk 0:00:03]}  Ra2 {[%clk 0:00:13]} 71. d6 {[%clk 0:00:04]}  Rxa4 {[%clk 0:00:12]} 72. d7 {[%clk 0:00:03]}  Rd4+ {[%clk 0:00:12]} 73. Ke2 {[%clk 0:00:04]}  Kb5 {[%clk 0:00:10]} 74. Ke3 {[%clk 0:00:03]}  Rd1 {[%clk 0:00:10]} 75. Ke2 {[%clk 0:00:03]}  Rd6 {[%clk 0:00:08]} 76. Ke3 {[%clk 0:00:04]}  a4 {[%clk 0:00:08]} 77. Kf4 {[%clk 0:00:04]}  a3 {[%clk 0:00:08]} 78. Ra8 {[%clk 0:00:04]}  Rxd7 {[%clk 0:00:08]} 79. Rxa3 {[%clk 0:00:04]}  Rd4+ {[%clk 0:00:07]} 80. Kg3 {[%clk 0:00:04]}  Rb4 {[%clk 0:00:08]} 81. Ra8 {[%clk 0:00:03]}  Kc4 {[%clk 0:00:08]} 82. Rc8+ {[%clk 0:00:04]}  Kb3 {[%clk 0:00:08]} 83. Kh4 {[%clk 0:00:04]}  b5 {[%clk 0:00:08]} 84. Kg3 {[%clk 0:00:04]}  Ka3 {[%clk 0:00:08]} 85. Ra8+ {[%clk 0:00:04]}  Kb2 {[%clk 0:00:08]} 86. Rb8 {[%clk 0:00:05]}  Rb3+ {[%clk 0:00:08]} 87. Kf2 {[%clk 0:00:05]}  b4 {[%clk 0:00:08]} 88. Ke2 {[%clk 0:00:05]}  Ka2 {[%clk 0:00:08]} 89. Kd2 {[%clk 0:00:06]}  g3 {[%clk 0:00:08]} 90. Kc1 {[%clk 0:00:05]}  Rc3+ {[%clk 0:00:07]} 91. Kd1 {[%clk 0:00:05]}  Kb3 {[%clk 0:00:08]} 92. Rg8 {[%clk 0:00:05]}  Rf3 {[%clk 0:00:08]} 93. Kd2 {[%clk 0:00:05]}  Kb2 {[%clk 0:00:07]} 94. Kd1 {[%clk 0:00:04]}  b3 {[%clk 0:00:07]} 95. Ke2 {[%clk 0:00:04]}  Rf2+ {[%clk 0:00:07]} 96. Ke1 {[%clk 0:00:04]}  Kc2 {[%clk 0:00:06]} 97. Rxg3 {[%clk 0:00:04]}  Rh2 {[%clk 0:00:06]} 98. Rg8 {[%clk 0:00:03]}  b2 {[%clk 0:00:06]} 99. Rc8+ {[%clk 0:00:03]}  Kb1 {[%clk 0:00:06]} 100. Kd1 {[%clk 0:00:03]}  Rh1+ {[%clk 0:00:06]} 101. Kd2 {[%clk 0:00:03]}  Rc1 {[%clk 0:00:06]} 102. Ra8 {[%clk 0:00:02]}  Rh1 {[%clk 0:00:07]} 103. Ra7 {[%clk 0:00:03]}  Rh2+ {[%clk 0:00:07]} 104. Kd1 {[%clk 0:00:03]}  Rh3 {[%clk 0:00:07]} 105. Kd2 {[%clk 0:00:04]}  Rh1 {[%clk 0:00:08]} 106. Ra8 {[%clk 0:00:03]}  Rh2+ {[%clk 0:00:09]} 107. Kd1 {[%clk 0:00:03]}  Rh1+ {[%clk 0:00:09]} 108. Kd2 {[%clk 0:00:04]}  Rh2+ {[%clk 0:00:09]} 109. Kd1 {[%clk 0:00:04]}  Rh1+ {[%clk 0:00:10]} 110. Kd2 {[%clk 0:00:04]} 1/2-1/2


[Site "https://www.chess.com"]

[Event "Titled Tuesday Blitz November 22 Late 2022"]
[White "Reprintsev, Alexander"]
[Black "Czopor, Maciej"]
[WhiteFideId "14100541"]
[BlackFideId "21805431"]
[WhiteElo "2230"]
[BlackElo "2324"]
[Result "0-1"]
[Round "05"]
[TimeControl "180+1"]
[Date "2022.11.23"]
[WhiteClock "0:00:06"]
[BlackClock "0:00:15"]

1. e4 {[%clk 0:02:57]}  g6 {[%clk 0:02:52]} 2. d4 {[%clk 0:02:55]}  Bg7 {[%clk 0:02:52]} 3. Nc3 {[%clk 0:02:49]}  c6 {[%clk 0:02:51]} 4. Be3 {[%clk 0:02:37]}  d5 {[%clk 0:02:51]} 5. f3 {[%clk 0:02:35]}  Nf6 {[%clk 0:02:36]} 6. e5 {[%clk 0:02:33]}  Nfd7 {[%clk 0:02:36]} 7. h4 {[%clk 0:02:31]}  h5 {[%clk 0:02:35]} 8. Nh3 {[%clk 0:02:30]}  f6 {[%clk 0:02:33]} 9. Bd3 {[%clk 0:02:21]}  Nf8 {[%clk 0:02:33]} 10. Nf4 {[%clk 0:02:07]}  fxe5 {[%clk 0:02:30]} 11. Bxg6+ {[%clk 0:01:58]}  Nxg6 {[%clk 0:01:52]} 12. Nxg6 {[%clk 0:01:59]}  exd4 {[%clk 0:01:52]} 13. Bxd4 {[%clk 0:01:50]}  Rh6 {[%clk 0:01:52]} 14. Bxg7 {[%clk 0:01:12]}  Rxg6 {[%clk 0:01:51]} 15. Be5 {[%clk 0:01:01]}  Nd7 {[%clk 0:01:40]} 16. Qe2 {[%clk 0:00:54]}  Nxe5 {[%clk 0:01:38]} 17. O-O-O {[%clk 0:00:54]}  Nf7 {[%clk 0:01:33]} 18. g4 {[%clk 0:00:52]}  hxg4 {[%clk 0:01:29]} 19. h5 {[%clk 0:00:52]}  Re6 {[%clk 0:01:23]} 20. Qg2 {[%clk 0:00:49]}  Qd6 {[%clk 0:01:21]} 21. fxg4 {[%clk 0:00:43]}  Bd7 {[%clk 0:01:15]} 22. Rdf1 {[%clk 0:00:33]}  Rf6 {[%clk 0:01:09]} 23. g5 {[%clk 0:00:31]}  Rxf1+ {[%clk 0:00:48]} 24. Rxf1 {[%clk 0:00:31]}  Qe5 {[%clk 0:00:28]} 25. Rg1 {[%clk 0:00:14]}  O-O-O {[%clk 0:00:25]} 26. h6 {[%clk 0:00:14]}  Rg8 {[%clk 0:00:18]} 27. h7 {[%clk 0:00:11]}  Rxg5 {[%clk 0:00:16]} 28. Qh1 {[%clk 0:00:08]}  Qe3+ {[%clk 0:00:14]} 29. Kd1 {[%clk 0:00:06]}  Rxg1+ {[%clk 0:00:15]} 0-1


[Site "https://www.chess.com"]

[Event "Titled Tuesday Blitz November 22 Late 2022"]
[White "Risteski, Emil"]
[Black "Zakarian, David"]
[WhiteFideId "15005267"]
[BlackFideId "13301276"]
[WhiteElo "2251"]
[BlackElo "2307"]
[Result "1-0"]
[Round "05"]
[TimeControl "180+1"]
[Date "2022.11.23"]
[WhiteClock "0:00:22"]
[BlackClock "0:00:17"]

1. Nf3 {[%clk 0:03:00]}  Nf6 {[%clk 0:02:56]} 2. g3 {[%clk 0:03:01]}  d5 {[%clk 0:02:53]} 3. Bg2 {[%clk 0:03:01]}  e6 {[%clk 0:02:53]} 4. O-O {[%clk 0:03:02]}  Be7 {[%clk 0:02:53]} 5. d3 {[%clk 0:03:02]}  O-O {[%clk 0:02:53]} 6. Nbd2 {[%clk 0:03:03]}  a5 {[%clk 0:02:51]} 7. e4 {[%clk 0:02:58]}  c6 {[%clk 0:02:49]} 8. e5 {[%clk 0:02:53]}  Nfd7 {[%clk 0:02:47]} 9. d4 {[%clk 0:02:53]}  c5 {[%clk 0:02:46]} 10. c3 {[%clk 0:02:54]}  Nc6 {[%clk 0:02:45]} 11. Re1 {[%clk 0:02:46]}  b6 {[%clk 0:02:43]} 12. Bf1 {[%clk 0:02:44]}  Ba6 {[%clk 0:02:43]} 13. Bxa6 {[%clk 0:02:42]}  Rxa6 {[%clk 0:02:44]} 14. h4 {[%clk 0:02:41]}  b5 {[%clk 0:02:40]} 15. h5 {[%clk 0:02:39]}  b4 {[%clk 0:02:33]} 16. h6 {[%clk 0:02:36]}  g6 {[%clk 0:02:32]} 17. Nf1 {[%clk 0:02:35]}  a4 {[%clk 0:02:23]} 18. a3 {[%clk 0:02:34]}  bxc3 {[%clk 0:02:13]} 19. bxc3 {[%clk 0:02:33]}  cxd4 {[%clk 0:02:12]} 20. cxd4 {[%clk 0:02:31]}  Qb6 {[%clk 0:02:10]} 21. N1h2 {[%clk 0:02:28]}  Rb8 {[%clk 0:02:10]} 22. Ng4 {[%clk 0:02:20]}  Qb3 {[%clk 0:02:01]} 23. Qe2 {[%clk 0:02:09]}  Qc4 {[%clk 0:02:01]} 24. Qxc4 {[%clk 0:01:56]}  dxc4 {[%clk 0:02:01]} 25. Ne3 {[%clk 0:01:55]}  Na5 {[%clk 0:01:54]} 26. Bd2 {[%clk 0:01:55]}  Nb3 {[%clk 0:01:53]} 27. Ra2 {[%clk 0:01:52]}  Rc6 {[%clk 0:01:49]} 28. Bc3 {[%clk 0:01:52]}  Nb6 {[%clk 0:01:47]} 29. Nd2 {[%clk 0:01:42]}  Bf8 {[%clk 0:01:41]} 30. Ne4 {[%clk 0:01:33]}  Bxh6 {[%clk 0:01:37]} 31. f4 {[%clk 0:01:31]}  Bf8 {[%clk 0:01:34]} 32. Kf2 {[%clk 0:01:27]}  Rd8 {[%clk 0:01:31]} 33. Rh1 {[%clk 0:01:23]}  Be7 {[%clk 0:01:26]} 34. Ng4 {[%clk 0:01:21]}  h5 {[%clk 0:01:21]} 35. Ngf6+ {[%clk 0:01:21]}  Kg7 {[%clk 0:01:22]} 36. g4 {[%clk 0:01:20]}  Nd5 {[%clk 0:01:12]} 37. gxh5 {[%clk 0:01:17]}  Nxc3 {[%clk 0:01:03]} 38. Nxc3 {[%clk 0:01:02]}  Bxf6 {[%clk 0:01:01]} 39. exf6+ {[%clk 0:01:03]}  Kxf6 {[%clk 0:01:00]} 40. hxg6 {[%clk 0:00:50]}  Kxg6 {[%clk 0:00:48]} 41. Ke3 {[%clk 0:00:46]}  Rxd4 {[%clk 0:00:46]} 42. Rg2+ {[%clk 0:00:46]}  Kf6 {[%clk 0:00:45]} 43. Ne4+ {[%clk 0:00:39]}  Ke7 {[%clk 0:00:40]} 44. Rh7 {[%clk 0:00:39]}  Rc8 {[%clk 0:00:26]} 45. Rgg7 {[%clk 0:00:38]}  Rf8 {[%clk 0:00:26]} 46. Ng5 {[%clk 0:00:38]}  Rd3+ {[%clk 0:00:22]} 47. Kf2 {[%clk 0:00:38]}  c3 {[%clk 0:00:21]} 48. Nxf7 {[%clk 0:00:33]}  Kf6 {[%clk 0:00:20]} 49. Ne5 {[%clk 0:00:27]}  Rd2+ {[%clk 0:00:20]} 50. Ke3 {[%clk 0:00:22]}  Rfd8 {[%clk 0:00:17]} 51. Rf7# {[%clk 0:00:22]} 1-0


[Site "https://www.chess.com"]

[Event "Titled Tuesday Blitz November 22 Late 2022"]
[White "Rosen, Eric"]
[Black "Maksimovic, Bojan"]
[WhiteFideId "2032562"]
[BlackFideId "14408120"]
[WhiteElo "2362"]
[BlackElo "2447"]
[Result "0-1"]
[Round "05"]
[TimeControl "180+1"]
[Date "2022.11.23"]
[WhiteClock "0:00:01"]
[BlackClock "0:00:03"]

1. d4 {[%clk 0:03:00]}  Nf6 {[%clk 0:02:59]} 2. Bf4 {[%clk 0:03:01]}  g6 {[%clk 0:03:00]} 3. Nc3 {[%clk 0:03:01]}  Bg7 {[%clk 0:03:00]} 4. e4 {[%clk 0:03:01]}  d5 {[%clk 0:03:00]} 5. e5 {[%clk 0:03:02]}  Ne4 {[%clk 0:03:00]} 6. Nce2 {[%clk 0:03:02]}  f6 {[%clk 0:02:55]} 7. f3 {[%clk 0:03:02]}  Ng5 {[%clk 0:02:55]} 8. Bxg5 {[%clk 0:03:00]}  fxg5 {[%clk 0:02:55]} 9. Qd2 {[%clk 0:02:56]}  c5 {[%clk 0:02:54]} 10. Qxg5 {[%clk 0:02:47]}  cxd4 {[%clk 0:02:44]} 11. Nxd4 {[%clk 0:02:44]}  Nc6 {[%clk 0:02:33]} 12. O-O-O {[%clk 0:02:11]}  Nxe5 {[%clk 0:02:08]} 13. Bb5+ {[%clk 0:02:10]}  Kf8 {[%clk 0:02:05]} 14. Nge2 {[%clk 0:01:52]}  Nf7 {[%clk 0:02:01]} 15. Qh4 {[%clk 0:01:10]}  Qa5 {[%clk 0:02:00]} 16. Kb1 {[%clk 0:01:03]}  e5 {[%clk 0:01:54]} 17. Rhe1 {[%clk 0:00:36]}  g5 {[%clk 0:00:49]} 18. Qf2 {[%clk 0:00:29]}  exd4 {[%clk 0:00:27]} 19. Nxd4 {[%clk 0:00:28]}  Bf6 {[%clk 0:00:27]} 20. h4 {[%clk 0:00:17]}  gxh4 {[%clk 0:00:26]} 21. g3 {[%clk 0:00:17]}  h3 {[%clk 0:00:25]} 22. g4 {[%clk 0:00:15]}  h6 {[%clk 0:00:20]} 23. c3 {[%clk 0:00:02]}  a6 {[%clk 0:00:18]} 24. Bd3 {[%clk 0:00:03]}  Bd7 {[%clk 0:00:18]} 25. Rg1 {[%clk 0:00:03]}  Qb6 {[%clk 0:00:17]} 26. f4 {[%clk 0:00:02]}  Re8 {[%clk 0:00:13]} 27. g5 {[%clk 0:00:03]}  Bxd4 {[%clk 0:00:07]} 28. cxd4 {[%clk 0:00:04]}  hxg5 {[%clk 0:00:05]} 29. fxg5 {[%clk 0:00:05]}  Kg7 {[%clk 0:00:06]} 30. g6 {[%clk 0:00:05]}  Nh6 {[%clk 0:00:05]} 31. Qg3 {[%clk 0:00:04]}  Qf6 {[%clk 0:00:03]} 32. Bc2 {[%clk 0:00:04]}  Nf5 {[%clk 0:00:02]} 33. Qb3 {[%clk 0:00:03]}  Re7 {[%clk 0:00:03]} 34. Rh1 {[%clk 0:00:02]}  Ne3 {[%clk 0:00:03]} 35. Rde1 {[%clk 0:00:01]}  Nxc2 {[%clk 0:00:03]} 0-1


[Site "https://www.chess.com"]

[Event "Titled Tuesday Blitz November 22 Late 2022"]
[White "Sabuk, Piotr"]
[Black "Polster, Christian"]
[WhiteFideId "1137565"]
[BlackFideId "12965081"]
[WhiteElo "2326"]
[BlackElo "2209"]
[Result "1-0"]
[Round "05"]
[TimeControl "180+1"]
[Date "2022.11.23"]
[WhiteClock "0:00:18"]
[BlackClock "0:00:08"]

1. d4 {[%clk 0:02:52]}  d5 {[%clk 0:02:59]} 2. c4 {[%clk 0:02:51]}  Nf6 {[%clk 0:02:48]} 3. cxd5 {[%clk 0:02:45]}  g5 {[%clk 0:02:48]} 4. Bxg5 {[%clk 0:02:33]}  Ne4 {[%clk 0:02:42]} 5. Bf4 {[%clk 0:02:26]}  e5 {[%clk 0:02:29]} 6. dxe5 {[%clk 0:02:24]}  Bb4+ {[%clk 0:02:24]} 7. Nd2 {[%clk 0:02:22]}  Qxd5 {[%clk 0:02:19]} 8. Nf3 {[%clk 0:02:22]}  Bg4 {[%clk 0:01:54]} 9. a3 {[%clk 0:02:18]}  Ba5 {[%clk 0:01:37]} 10. b4 {[%clk 0:02:11]}  Bb6 {[%clk 0:01:35]} 11. Nxe4 {[%clk 0:02:05]}  Qxe4 {[%clk 0:01:32]} 12. e3 {[%clk 0:02:04]}  Nc6 {[%clk 0:01:20]} 13. Bd3 {[%clk 0:01:51]}  Qd5 {[%clk 0:01:13]} 14. Be2 {[%clk 0:01:51]}  O-O-O {[%clk 0:00:52]} 15. Qxd5 {[%clk 0:01:46]}  Rxd5 {[%clk 0:00:52]} 16. h3 {[%clk 0:01:44]}  Bh5 {[%clk 0:00:37]} 17. Bc4 {[%clk 0:01:44]}  Rd7 {[%clk 0:00:15]} 18. e6 {[%clk 0:01:35]}  Re7 {[%clk 0:00:15]} 19. exf7 {[%clk 0:01:30]}  Bxf7 {[%clk 0:00:16]} 20. Rc1 {[%clk 0:01:27]}  Rd8 {[%clk 0:00:15]} 21. Bg5 {[%clk 0:01:20]}  Bxc4 {[%clk 0:00:11]} 22. Bxe7 {[%clk 0:01:11]}  Re8 {[%clk 0:00:10]} 23. Rxc4 {[%clk 0:01:11]}  Rxe7 {[%clk 0:00:10]} 24. O-O {[%clk 0:01:10]}  a5 {[%clk 0:00:09]} 25. b5 {[%clk 0:01:07]}  Na7 {[%clk 0:00:09]} 26. a4 {[%clk 0:01:07]}  Kb8 {[%clk 0:00:09]} 27. Rb1 {[%clk 0:01:03]}  Nc8 {[%clk 0:00:10]} 28. Kf1 {[%clk 0:01:01]}  Nd6 {[%clk 0:00:08]} 29. Rf4 {[%clk 0:01:00]}  Bc5 {[%clk 0:00:08]} 30. g4 {[%clk 0:00:55]}  b6 {[%clk 0:00:08]} 31. h4 {[%clk 0:00:51]}  Bb4 {[%clk 0:00:08]} 32. Rc1 {[%clk 0:00:49]}  Ne4 {[%clk 0:00:07]} 33. Nd4 {[%clk 0:00:43]}  Kb7 {[%clk 0:00:06]} 34. Nc6 {[%clk 0:00:41]}  Re8 {[%clk 0:00:06]} 35. Kg2 {[%clk 0:00:37]}  Nc5 {[%clk 0:00:04]} 36. Nxb4 {[%clk 0:00:33]}  axb4 {[%clk 0:00:04]} 37. Rxb4 {[%clk 0:00:31]}  Nd3 {[%clk 0:00:04]} 38. Rcc4 {[%clk 0:00:28]}  Nxb4 {[%clk 0:00:04]} 39. Rxb4 {[%clk 0:00:28]}  Rd8 {[%clk 0:00:04]} 40. Rd4 {[%clk 0:00:22]}  Ra8 {[%clk 0:00:03]} 41. g5 {[%clk 0:00:21]}  c5 {[%clk 0:00:04]} 42. bxc6+ {[%clk 0:00:21]}  Kxc6 {[%clk 0:00:04]} 43. Kf3 {[%clk 0:00:22]}  Kc5 {[%clk 0:00:04]} 44. h5 {[%clk 0:00:21]}  Rf8+ {[%clk 0:00:04]} 45. Ke2 {[%clk 0:00:21]}  Rg8 {[%clk 0:00:04]} 46. Rg4 {[%clk 0:00:21]}  b5 {[%clk 0:00:03]} 47. axb5 {[%clk 0:00:21]}  Kxb5 {[%clk 0:00:04]} 48. g6 {[%clk 0:00:21]}  hxg6 {[%clk 0:00:04]} 49. hxg6 {[%clk 0:00:22]}  Kc5 {[%clk 0:00:04]} 50. f4 {[%clk 0:00:21]}  Kd5 {[%clk 0:00:05]} 51. Rg5+ {[%clk 0:00:21]}  Ke6 {[%clk 0:00:05]} 52. Kf3 {[%clk 0:00:21]}  Kf6 {[%clk 0:00:05]} 53. e4 {[%clk 0:00:21]}  Rb8 {[%clk 0:00:04]} 54. e5+ {[%clk 0:00:22]}  Ke6 {[%clk 0:00:04]} 55. g7 {[%clk 0:00:21]}  Rg8 {[%clk 0:00:04]} 56. Ke4 {[%clk 0:00:21]}  Kf7 {[%clk 0:00:04]} 57. f5 {[%clk 0:00:21]}  Rxg7 {[%clk 0:00:04]} 58. e6+ {[%clk 0:00:21]}  Kf6 {[%clk 0:00:04]} 59. Rxg7 {[%clk 0:00:20]}  Kxg7 {[%clk 0:00:05]} 60. Ke5 {[%clk 0:00:21]}  Kf8 {[%clk 0:00:06]} 61. f6 {[%clk 0:00:21]}  Ke8 {[%clk 0:00:07]} 62. Kd6 {[%clk 0:00:21]}  Kf8 {[%clk 0:00:07]} 63. Kd7 {[%clk 0:00:21]}  Kg8 {[%clk 0:00:08]} 64. e7 {[%clk 0:00:21]}  Kh7 {[%clk 0:00:09]} 65. f7 {[%clk 0:00:21]}  Kg6 {[%clk 0:00:10]} 66. f8=Q {[%clk 0:00:21]}  Kg5 {[%clk 0:00:09]} 67. Ke6 {[%clk 0:00:20]}  Kg4 {[%clk 0:00:09]} 68. Qg7+ {[%clk 0:00:20]}  Kf4 {[%clk 0:00:09]} 69. e8=Q {[%clk 0:00:20]}  Ke4 {[%clk 0:00:08]} 70. Kf7+ {[%clk 0:00:19]}  Kd5 {[%clk 0:00:08]} 71. Qg5+ {[%clk 0:00:18]}  Kd6 {[%clk 0:00:08]} 72. Qge5# {[%clk 0:00:18]} 1-0


[Site "https://www.chess.com"]

[Event "Titled Tuesday Blitz November 22 Late 2022"]
[White "Sailer, Mike"]
[Black "Novikova, Galina"]
[WhiteFideId "2012901"]
[BlackFideId "4157095"]
[WhiteElo "2109"]
[BlackElo "1973"]
[Result "0-1"]
[Round "05"]
[TimeControl "180+1"]
[Date "2022.11.23"]
[WhiteClock "0:00:12"]
[BlackClock "0:00:27"]

1. Nf3 {[%clk 0:02:49]}  e6 {[%clk 0:02:59]} 2. g3 {[%clk 0:02:46]}  d5 {[%clk 0:02:58]} 3. Bg2 {[%clk 0:02:47]}  b6 {[%clk 0:02:59]} 4. c4 {[%clk 0:02:47]}  Bb7 {[%clk 0:02:59]} 5. O-O {[%clk 0:02:47]}  Nf6 {[%clk 0:02:58]} 6. d4 {[%clk 0:02:45]}  Be7 {[%clk 0:02:56]} 7. Nc3 {[%clk 0:02:45]}  O-O {[%clk 0:02:55]} 8. cxd5 {[%clk 0:02:44]}  Nxd5 {[%clk 0:02:49]} 9. Nxd5 {[%clk 0:02:42]}  Bxd5 {[%clk 0:02:49]} 10. Bf4 {[%clk 0:02:41]}  c5 {[%clk 0:02:47]} 11. dxc5 {[%clk 0:02:25]}  Bxc5 {[%clk 0:02:47]} 12. a3 {[%clk 0:02:26]}  a5 {[%clk 0:02:44]} 13. Re1 {[%clk 0:02:18]}  Nd7 {[%clk 0:02:31]} 14. e4 {[%clk 0:02:17]}  Bb7 {[%clk 0:02:26]} 15. Bd6 {[%clk 0:02:13]}  Re8 {[%clk 0:02:22]} 16. Bxc5 {[%clk 0:02:08]}  Nxc5 {[%clk 0:02:23]} 17. Ne5 {[%clk 0:01:52]}  Qc7 {[%clk 0:01:47]} 18. f4 {[%clk 0:01:41]}  Rad8 {[%clk 0:01:42]} 19. Qc2 {[%clk 0:01:37]}  a4 {[%clk 0:01:36]} 20. Rac1 {[%clk 0:01:29]}  h6 {[%clk 0:01:35]} 21. Qxa4 {[%clk 0:01:21]}  Rd2 {[%clk 0:01:19]} 22. Qxe8+ {[%clk 0:01:16]}  Kh7 {[%clk 0:01:19]} 23. Qxf7 {[%clk 0:01:08]}  Qd6 {[%clk 0:01:11]} 24. Qg6+ {[%clk 0:00:58]}  Kg8 {[%clk 0:01:08]} 25. Kh1 {[%clk 0:00:33]}  Qd4 {[%clk 0:00:43]} 26. Rxc5 {[%clk 0:00:28]}  Qxc5 {[%clk 0:00:36]} 27. Qf7+ {[%clk 0:00:28]}  Kh7 {[%clk 0:00:37]} 28. Qxb7 {[%clk 0:00:28]}  Qf2 {[%clk 0:00:37]} 29. Rg1 {[%clk 0:00:26]}  Rxb2 {[%clk 0:00:37]} 30. Qf7 {[%clk 0:00:25]}  Re2 {[%clk 0:00:32]} 31. Qg6+ {[%clk 0:00:24]}  Kg8 {[%clk 0:00:32]} 32. Qxe6+ {[%clk 0:00:25]}  Kh7 {[%clk 0:00:31]} 33. Qg6+ {[%clk 0:00:25]}  Kg8 {[%clk 0:00:32]} 34. Nf7 {[%clk 0:00:24]}  Re1 {[%clk 0:00:25]} 35. Nxh6+ {[%clk 0:00:22]}  Kh8 {[%clk 0:00:26]} 36. Nf7+ {[%clk 0:00:15]}  Kg8 {[%clk 0:00:26]} 37. Nh6+ {[%clk 0:00:12]}  Kh8 {[%clk 0:00:26]} 38. Qe8+ {[%clk 0:00:12]}  Kh7 {[%clk 0:00:27]} 0-1


[Site "https://www.chess.com"]